fUSD/lending_fUSD_20240808
["ID","MTS","AMOUNT","RATE_DAILY","PERIOD"]
[334458706,1723122647080,-99.16816442,0.0002087,2]
[334458721,1723122647241,-400.83183558,0.0002087,2]
[334458723,1723122647251,-2209.70742248,0.00020999,2]
[334458725,1723122647263,-479.19257752,0.00020999,2]
[334458727,1723122647272,-225.66587792,0.00021,2]
[334458729,1723122647282,-946.21399857,0.00021,8]
[334458731,1723122647294,-53.78600143,0.00021,8]
[334458733,1723122647303,-356.37,0.0002111,2]
[334458735,1723122647312,-150.0,0.0002111,2]
[334458737,1723122647322,-150.0,0.0002111,2]
[334458739,1723122647331,-3023.85582495,0.00021168,4]
[334458741,1723122647343,-6882.92088896,0.00021168,4]
[334458743,1723122647362,-3335.72084699,0.00021168,4]
[334458745,1723122647371,-834.97,0.00021178,2]
[334458747,1723122647380,-834.97,0.00021178,2]
[334458749,1723122647389,-225.6,0.00021223,2]
[334458751,1723122647399,-183.75086321,0.00021392,2]
[334458753,1723122647408,-1000.0,0.000215,8]
[334458755,1723122647418,-1000.0,0.000215,8]
[334458757,1723122647428,-546.81,0.00021518,2]
[334458759,1723122647437,-161.22972708,0.00021634,2]
[334458761,1723122647447,-1000.0,0.000217,9]
[334458763,1723122647456,-1000.0,0.000217,9]
[334458765,1723122647465,-634.0,0.000217,12]
[334458767,1723122647474,-866.54936272,0.00021746,4]
[334458769,1723122647490,-1178.42836696,0.00021746,4]
[334458771,1723122647500,-759.08272986,0.00021746,4]
[334458773,1723122647512,-9833.81164319,0.00021746,4]
[334458775,1723122647524,-2858.56287337,0.00021746,4]
[334458778,1723122647535,-489.3166424,0.00021746,4]
[334458780,1723122647543,-239.75619575,0.00021757,4]
[334458782,1723122647554,-1834.85362429,0.00021757,4]
[334458817,1723123137545,150.4,0.00025317,120]
[334458825,1723123691858,-302.790542,0.00010945,2]
[334458826,1723123691881,-300.0,0.00010999,2]
[334458828,1723123703066,-9713.15118945,0.00011,2]
[334458830,1723123714635,-10000.0,0.00011,2]
[334458831,1723123719619,-10000.0,0.00011,2]
[334458832,1723123725402,-10000.0,0.00011,2]
[334458833,1723123731204,-10000.0,0.00011,2]
[334458834,1723123738580,-10000.0,0.00011,2]
[334458835,1723123743556,-10000.0,0.00011,2]
[334458870,1723123833005,-294260.21131166,0.00011,2]
[334458871,1723123833015,-2265.41192799,0.00013279,2]
[334458872,1723123833025,-7469.53520106,0.00013279,2]
[334458873,1723123833035,-161.22972708,0.00013379,2]
[334458874,1723123833045,-9267.85011549,0.00013398,2]
[334458875,1723123833054,-1554.97186775,0.000138,3]
[334458876,1723123833068,-261.55533,0.000138,3]
[334458877,1723123833079,-24823.5682712,0.000138,3]
[334458893,1723123838332,-3699.44999999,0.000138,3]
[334458894,1723123838344,-585.70767439,0.000138,3]
[334458895,1723123838489,-2475.97919995,0.000138,3]
[334458896,1723123838514,-5622.40559362,0.000138,3]
[334458897,1723123838524,-168.76,0.00013973,2]
[334458898,1723123838534,-2259.0779639,0.00013973,2]
[334458899,1723123838549,-9206.011315,0.00014451,2]
[334458900,1723123838559,-7469.53520102,0.0001457,2]
[334458901,1723123838568,-4129.0,0.00015,2]
[334458902,1723123838578,-236.48012646,0.00015,2]
[334458903,1723123838589,-2087.21303329,0.00015,2]
[334458904,1723123838605,-267.01684025,0.00015,2]
[334458905,1723123838615,-150.99,0.00015,2]
[334458906,1723123838625,-451.96,0.00015297,2]
[334458907,1723123838634,-3846.94404154,0.00016705,3]
[334458908,1723123838646,-9160.93527076,0.00016705,3]
[334458909,1723123838655,-1554.952,0.00016715,2]
[334458910,1723123838665,-150.0,0.00016715,2]
[334458911,1723123838674,-292.598,0.00016715,2]
[334458912,1723123838684,-5125.0,0.00016715,2]
[334458914,1723123838693,-1505.473,0.00016715,2]
[334458915,1723123838703,-405.579,0.00016715,2]
[334458917,1723123838712,-446.0,0.00016715,2]
[334458919,1723123838722,-309.33600731,0.0001677,2]
[334458920,1723123838731,-153.68776239,0.0001678,2]
[334458921,1723123838741,-38921.43895953,0.0001687,3]
[334458929,1723123840336,-341.33055,0.00016715,2]
[334458930,1723123840495,-196.45945,0.00016715,2]
[334458931,1723123840506,-125.06955,0.0001687,3]
[334458932,1723123840929,-2264.48904993,0.0001687,3]
[334458933,1723123840942,-371.205,0.0001687,3]
[334458934,1723123840954,-328.79343,0.0001687,3]
[334458935,1723123840972,-1389.36819607,0.0001687,3]
[334458936,1723123840988,-99686.30824947,0.0001687,3]
[334458937,1723123841001,-81305.39284521,0.0001687,3]
[334458938,1723123841163,-4215.49301275,0.0001687,3]
[334458939,1723123841178,-4019.09127962,0.0001687,3]
[334458940,1723123841192,-315.6,0.0001687,3]
[334458941,1723123841205,-9309.8282398,0.0001687,3]
[334459006,1723123843296,-290.82189282,0.00013398,2]
[334459007,1723123843898,-8977.02822267,0.00013398,2]
[334459008,1723123843915,-114.23399045,0.00015861,2]
[334459010,1723123843928,-7355.30121057,0.00015861,2]
[334459012,1723123843939,-43599.65330762,0.0001687,3]
[334459014,1723123843950,-308.26863755,0.00016877,2]
[334459016,1723123843960,-14657.50007626,0.0001688,2]
[334459018,1723123843981,-152.9122,0.000109,2]
[334459019,1723123843991,-1121.35845504,0.0001688,2]
[334459020,1723123844004,-967.75619816,0.0001688,2]
[334459021,1723123844017,-730.07140233,0.0001688,2]
[334459022,1723123844030,-652.62529538,0.0001688,2]
[334459023,1723123844054,-543.39927312,0.0001688,2]
[334459024,1723123844067,-383.09005776,0.0001688,2]
[334459025,1723123844084,-3606.14856082,0.0001688,2]
[334459026,1723123844097,-942.316296,0.0001688,2]
[334459029,1723123846478,-943.31862009,0.0001688,2]
[334459030,1723123846489,-310.4501012,0.0001688,2]
[334459031,1723123846732,-635.39287192,0.0001688,2]
[334459032,1723123846747,-734.01641473,0.0001688,2]
[334459033,1723123846761,-743.3523116,0.0001688,2]
[334459034,1723123846775,-1481.03401387,0.0001688,2]
[334459035,1723123846786,-2604.7579682,0.0001688,2]
[334459036,1723123846797,-7462.43495099,0.0001688,2]
[334459042,1723123875402,400.00000001,0.00027,120]
[334459082,1723125032786,-697.89036063,0.00011186,2]
[334459083,1723125032798,-597.34227907,0.00011186,2]
[334459084,1723125032809,-3172.38668386,0.00011186,2]
[334459085,1723125032823,-2955.96425387,0.00011186,2]
[334459086,1723125032832,-844.03574613,0.00012397,2]
[334459087,1723125032844,-265.38049095,0.00012397,2]
[334459088,1723125032853,-1401.9787652,0.00012581,2]
[334459089,1723125032862,-60.25405999,0.00012681,2]
[334459090,1723125032874,-881.42115809,0.00012681,2]
[334459091,1723125032885,-450.44936041,0.00012681,2]
[334459092,1723125032896,-500.0,0.00012681,2]
[334459093,1723125032964,-4780.10413855,0.00012681,2]
[334459094,1723125032974,-322.98902537,0.00012681,2]
[334459095,1723125032983,-610.67635184,0.00012681,7]
[334459096,1723125032993,-258.56673339,0.00012681,2]
[334459097,1723125033002,-300.0,0.00012689,2]
[334459098,1723125033013,-439.89968088,0.0001269,2]
[334459099,1723125033025,-1321.1837,0.00013233,2]
[334459100,1723125033034,-440.94,0.00013824,2]
[334459101,1723125033044,-161.22,0.00013973,2]
[334459102,1723125033053,-340.88,0.00013973,2]
[334459103,1723125033066,-309.14100784,0.00014988,2]
[334459104,1723125033075,-624.15417638,0.00015,2]
[334459105,1723125033084,-1054.0,0.00015,2]
[334459106,1723125033093,-1042.66227734,0.0001526,5]
[334459107,1723125033105,-457.33772266,0.0001526,5]
[334459108,1723125033115,-639.51,0.00015261,2]
[334459109,1723125033124,-154.02,0.00015317,2]
[334459110,1723125033133,-150.2,0.00015414,2]
[334459111,1723125033142,-1618.7588382,0.00015491,2]
[334459112,1723125033154,-263.1811618,0.00015491,2]
[334459113,1723125033164,-250.0,0.00015665,2]
[334459114,1723125033173,-207.38193322,0.00015697,2]
[334459115,1723125033185,-1147.1719325,0.00015697,2]
[334459150,1723125037957,-3472.50470654,0.00015697,2]
[334459151,1723125037968,-12212.80005807,0.00015697,2]
[334459152,1723125037980,-1416.52136967,0.00015697,2]
[334459153,1723125037990,-440.94,0.00016088,2]
[334459154,1723125037999,-150.0,0.00016337,2]
[334459155,1723125038008,-10000.0,0.00016338,2]
[334459156,1723125038018,-710.2932,0.0001668,2]
[334459157,1723125038036,-410.34172599,0.00016687,2]
[334459158,1723125038045,-6319.61598395,0.0001675,2]
[334459159,1723125038055,-150.65729125,0.0001675,2]
[334459160,1723125038066,-309.33600731,0.0001676,2]
[334459161,1723125038075,-694.89907288,0.0001677,3]
[334459162,1723125038086,-6046.71051065,0.0001677,3]
[334459163,1723125038097,-1270.89616337,0.0001677,3]
[334459164,1723125038108,-16595.7859177,0.0001677,3]
[334459165,1723125038118,-200.0,0.00016773,2]
[334459166,1723125038128,-328.3137933,0.00016773,2]
[334459167,1723125038137,-928.0769,0.0001678,2]
[334459168,1723125038146,-745.2683,0.0001678,2]
[334459169,1723125038155,-37998.475089,0.0001678,2]
[334459170,1723125038166,-373.6491406,0.0001678,2]
[334459171,1723125038177,-609.675,0.0001678,2]
[334459176,1723125041095,-268.18745033,0.0001678,2]
[334459177,1723125041222,-6763.4989264,0.0001678,2]
[334459178,1723125041234,-346.55818592,0.0001678,2]
[334459203,1723125043520,-6053.2893829,0.0001678,2]
[334459211,1723125046023,-6887.40602485,0.0001678,2]
[334459212,1723125046036,-268.34817102,0.0001678,2]
[334459213,1723125046239,-428.19980199,0.0001678,2]
[334459214,1723125046250,-5740.0572,0.0001678,2]
[334459232,1723125795897,500.0,0.0002693,120]
[334459235,1723126201922,308.33706045,0.00025,90]
[334459242,1723126232914,-643.41,0.00013036,2]
[334459243,1723126232923,-473.17,0.00013136,2]
[334459244,1723126232933,-256.88215995,0.00013497,2]
[334459245,1723126232972,-858.16390953,0.00013497,2]
[334459246,1723126232984,-86.52443324,0.00013497,2]
[334459247,1723126232994,-2268.20819127,0.00013579,2]
[334459248,1723126233005,-453.51,0.00013579,2]
[334459249,1723126233017,-2278.28180873,0.00013579,2]
[334459250,1723126233027,-398.0,0.00013597,2]
[334459251,1723126233038,-2259.0779639,0.00013972,2]
[334459252,1723126233048,-154.54,0.00013973,2]
[334459253,1723126233058,-164.33652674,0.00014899,2]
[334459254,1723126233068,-150.0,0.00014964,2]
[334459255,1723126233079,-300.0,0.00014971,2]
[334459256,1723126233089,-19.33970063,0.00014971,2]
[334459257,1723126233101,-280.66029937,0.00014971,2]
[334459258,1723126233111,-2064.08168954,0.00014972,2]
[334459259,1723126233123,-3054.8697043,0.00014972,2]
[334459260,1723126233134,-2317.36112115,0.00014972,2]
[334459261,1723126233149,-2563.68748501,0.00014972,2]
[334459262,1723126233159,-4587.0,0.00015,2]
[334459263,1723126233169,-1057.0,0.00015,2]
[334459264,1723126233179,-250.0,0.00015131,2]
[334459265,1723126233188,-1000.0,0.00015163,2]
[334459266,1723126233198,-156.0,0.00015167,2]
[334459267,1723126233208,-47.5885001,0.00015168,2]
[334459268,1723126233220,-893.3814999,0.00015168,2]
[334459269,1723126233230,-4817.60598703,0.00015168,2]
[334459270,1723126233242,-4489.4571352,0.00015168,2]
[334459271,1723126233254,-13235.77687777,0.00015168,2]
[334459272,1723126233263,-682.23,0.00015168,2]
[334459273,1723126233273,-280.29837452,0.00015168,2]
[334459274,1723126233288,-143.78162548,0.00015168,2]
[334459275,1723126233301,-250.0,0.00015283,2]
[334459277,1723126233311,-386.22,0.00015311,2]
[334459278,1723126233321,-473.17,0.000154,2]
[334459279,1723126233330,-599.60606905,0.00015412,2]
[334459280,1723126233343,-242.03393095,0.00015412,2]
[334459281,1723126233354,-163.34,0.00015445,2]
[334459282,1723126233365,-2287.64,0.00015502,2]
[334459283,1723126233375,-156.69,0.00015711,2]
[334459284,1723126233386,-2019.49606905,0.00015858,2]
[334459285,1723126233400,-285.0393,0.00015858,2]
[334459286,1723126233412,-505.95034743,0.00015858,2]
[334459296,1723126237826,-2297.18600683,0.00015858,2]
[334459297,1723126237837,-155.0,0.00016358,2]
[334459298,1723126237849,-150.92042992,0.00016358,2]
[334459299,1723126237861,-4.07957008,0.00016358,2]
[334459300,1723126237870,-409.0989562,0.00016439,2]
[334459301,1723126237879,-1000.0,0.0001644,2]
[334459302,1723126237889,-178.0,0.00016468,2]
[334459303,1723126237900,-7483.9404,0.0001668,2]
[334459304,1723126237909,-2393.83377239,0.0001668,2]
[334459305,1723126237920,-4587.54295278,0.0001668,2]
[334459306,1723126237932,-425.4,0.0001668,2]
[334459307,1723126238082,-21789.64567483,0.0001668,2]
[334459308,1723126238092,-251.0462,0.0001668,2]
[334459309,1723126238102,-329.54,0.0001668,2]
[334459310,1723126238111,-6434.60790563,0.0001677,2]
[334459311,1723126238121,-175.10094526,0.0001678,2]
[334459312,1723126238131,-2892.55679,0.0001678,2]
[334459313,1723126238140,-150.65729119,0.0001678,2]
[334459314,1723126238152,-10750.61587076,0.0001686,3]
[334459315,1723126238165,-1559.04212574,0.0001686,3]
[334459316,1723126238175,-151.0,0.0001687,2]
[334459317,1723126238185,-151.0,0.0001687,2]
[334459318,1723126238195,-151.0,0.0001687,2]
[334459319,1723126238205,-286.577562,0.0001687,2]
[334459320,1723126238215,-286.577562,0.0001687,2]
[334459321,1723126238225,-286.577562,0.0001687,2]
[334459322,1723126238235,-286.577562,0.0001687,2]
[334459323,1723126238244,-286.577562,0.0001687,2]
[334459324,1723126238254,-286.577562,0.0001687,2]
[334459326,1723126238263,-151.0,0.0001687,2]
[334459328,1723126238273,-400.462004,0.0001687,2]
[334459330,1723126238282,-400.462004,0.0001687,2]
[334459332,1723126238292,-400.462004,0.0001687,2]
[334459334,1723126238302,-400.462004,0.0001687,2]
[334459336,1723126238311,-72.38125245,0.0001687,2]
[334459338,1723126238323,-328.08075155,0.0001687,2]
[334459340,1723126238333,-400.462004,0.0001687,2]
[334459342,1723126238343,-151.0,0.0001687,2]
[334459344,1723126238357,-151.0,0.0001687,2]
[334459346,1723126238366,-151.0,0.0001687,2]
[334459348,1723126238375,-123096.579965,0.0001687,3]
[334459349,1723126238385,-200.0,0.00016873,2]
[334459351,1723126238396,-63060.90797603,0.0001688,2]
[334459354,1723126238411,-314.63766292,0.0001688,2]
[334459355,1723126238423,-1001.62500421,0.0001688,2]
[334459357,1723126238435,-751.71479486,0.0001688,2]
[334459360,1723126238446,-1393.41253977,0.0001688,2]
[334459437,1723126240493,-182392.90802684,0.0001688,2]
[334459438,1723126240502,-286.577562,0.0001688,2]
[334459439,1723126240511,-286.577562,0.0001688,2]
[334459440,1723126240522,-286.577562,0.0001688,2]
[334459441,1723126240532,-286.577562,0.0001688,2]
[334459442,1723126240542,-400.462004,0.0001688,2]
[334459443,1723126240551,-400.462004,0.0001688,2]
[334459444,1723126240560,-400.462004,0.0001688,2]
[334459445,1723126240569,-400.462004,0.0001688,2]
[334459446,1723126240580,-151.0,0.0001688,2]
[334459447,1723126240589,-151.0,0.0001688,2]
[334459448,1723126240598,-151.0,0.0001688,2]
[334459449,1723126240608,-175.30532,0.0001688,2]
[334459450,1723126240617,-151.0,0.0001688,2]
[334459451,1723126240626,-151.0,0.0001688,2]
[334459452,1723126240636,-2438.52043949,0.00017004,2]
[334459453,1723126240645,-1000.0,0.00017058,2]
[334459454,1723126240657,-12309.6579965,0.00017283,3]
[334459455,1723126240666,-249.834,0.00017303,2]
[334459456,1723126240676,-544.73,0.00017303,2]
[334459457,1723126240685,-341.33,0.00017303,2]
[334459458,1723126240694,-15399.3263827,0.00017663,3]
[334459459,1723126240704,-473.17,0.00017664,2]
[334459460,1723126240714,-6434.60790558,0.00017673,2]
[334459461,1723126240723,-211.62746688,0.00017807,2]
[334459462,1723126240732,-150.2,0.00017982,2]
[334459463,1723126240742,-676.11936882,0.00018,2]
[334459464,1723126240751,-308.16874741,0.00018,2]
[334459465,1723126240760,-150.0,0.0001804,2]
[334459466,1723126240770,-150.0,0.00018113,2]
[334459467,1723126240779,-500.0,0.0001814,2]
[334459468,1723126240788,-150.0,0.00018297,2]
[334459469,1723126240797,-150.0,0.00018324,2]
[334459470,1723126240807,-150.0,0.00018332,2]
[334459471,1723126240816,-150.0,0.00018342,2]
[334459472,1723126240825,-150.65729119,0.00018404,2]
[334459473,1723126240835,-500.0,0.00018455,2]
[334459474,1723126240845,-3588.13834002,0.00018486,3]
[334459475,1723126240911,-8721.51965648,0.00018486,3]
[334459476,1723126240921,-151.0,0.00018521,2]
[334459477,1723126240931,-151.0,0.00018521,2]
[334459478,1723126240941,-2424.48034352,0.00018522,3]
[334459479,1723126240953,-593.9423939,0.00018522,3]
[334459494,1723126242662,-977.79543901,0.00018522,3]
[334459496,1723126242813,-363.00527108,0.00018522,3]
[334459497,1723126242824,-4420.26652857,0.00018522,3]
[334459498,1723126242856,-3530.16802042,0.00018522,3]
[334459499,1723126242865,-15399.3263827,0.00018522,3]
[334459500,1723126242875,-210.93187409,0.00018529,2]
[334459501,1723126242884,-151.0,0.00018532,2]
[334459502,1723126242893,-151.0,0.00018532,2]
[334459503,1723126242903,-6434.60790558,0.00018577,2]
[334459504,1723126242912,-151.0,0.00018577,2]
[334459505,1723126242922,-1257.03046369,0.00018599,2]
[334459506,1723126242931,-15399.3263827,0.00018634,3]
[334459507,1723126242941,-150.0,0.00018644,2]
[334459508,1723126242950,-356.37,0.00018644,2]
[334459509,1723126242959,-150.0,0.00018644,2]
[334459510,1723126242968,-150.0,0.00018644,2]
[334459511,1723126242978,-150.0,0.00018644,2]
[334459512,1723126242987,-710.44,0.00018644,2]
[334459513,1723126242997,-159.3,0.00018644,2]
[334459514,1723126243006,-150.0,0.00018644,2]
[334459515,1723126243016,-150.0,0.00018644,2]
[334459516,1723126243025,-359.26552808,0.00018898,2]
[334459517,1723126243034,-155.06365171,0.00018898,2]
[334459518,1723126243044,-1100.0,0.000189,6]
[334459519,1723126243053,-151.8,0.000189,2]
[334459520,1723126243062,-1000.0,0.00018954,2]
[334459521,1723126243071,-312.55014641,0.00018968,2]
[334459522,1723126243082,-24619.315993,0.00018969,3]
[334459523,1723126243091,-15399.3263827,0.00018969,3]
[334459524,1723126243100,-151.0,0.0001897,2]
[334459525,1723126243109,-151.0,0.0001897,2]
[334459526,1723126243118,-24619.315993,0.0001897,3]
[334459527,1723126243128,-30798.6527653,0.0001897,3]
[334459528,1723126243137,-151.0,0.00018979,2]
[334459529,1723126243146,-151.0,0.00018979,2]
[334459530,1723126243156,-151.0,0.00018979,2]
[334459531,1723126243166,-151.0,0.00018979,2]
[334459532,1723126243175,-151.0,0.00018979,2]
[334459533,1723126243184,-34522.45733161,0.0001898,3]
[334459534,1723126243196,-1279.32358081,0.0001898,3]
[334459552,1723126246711,-194.03896965,0.00018547,2]
[334459553,1723126246721,-1040.67985396,0.0001898,3]
[334459554,1723126246925,-5724.0,0.0001898,3]
[334459555,1723126246937,-4858.7400829,0.0001898,3]
[334459556,1723126246948,-403.53386833,0.0001898,3]
[334459557,1723126246959,-14275.41562243,0.0001898,3]
[334459558,1723126246970,-1321.4022825,0.0001898,3]
[334459559,1723126246981,-1869.3662922,0.0001898,3]
[334459560,1723126247011,-592.20419882,0.0001898,3]
[334459565,1723126396491,500.0,0.0002605,120]
[334459567,1723126997655,500.0,0.00026172,120]
[334459568,1723127022407,-150.0,0.00021918,30]
[334459569,1723127193093,-41000.183405,0.00011,2]
[334459580,1723127380984,308.33706045,0.00025,90]
[334459610,1723127432785,-150.0,0.00010999,2]
[334459611,1723127432795,-300.0,0.00010999,2]
[334459612,1723127432804,-4831.45609525,0.00011,2]
[334459613,1723127432848,-319.86038199,0.00011,2]
[334459614,1723127433014,-4970.95232,0.00011,2]
[334459618,1723127438014,-677.16389408,0.00011,2]
[334459619,1723127438026,-4420.97293879,0.00011,2]
[334459620,1723127438037,-1989.47898931,0.00011,2]
[334459621,1723127438182,-10212.22896142,0.00011,2]
[334459622,1723127438193,-8208.53520196,0.00011,2]
[334459623,1723127438205,-325.88,0.00011,2]
[334459624,1723127438267,-1451.33807564,0.00011,2]
[334459625,1723127438279,-1427.25349251,0.00011,2]
[334459626,1723127438375,-57902.05773947,0.00011,2]
[334459627,1723127438388,-1606.73102151,0.00011,2]
[334459628,1723127438399,-817.15530766,0.00011,2]
[334459629,1723127438410,-16182.84950419,0.00011,2]
[334459778,1723127443009,-435.08607622,0.00011,2]
[334459779,1723127443019,-8771.95301981,0.00011,2]
[334459780,1723127443030,-867.76559331,0.00011,2]
[334459781,1723127443041,-602.00767301,0.00011,2]
[334459782,1723127443053,-2571.18474954,0.00011,2]
[334459783,1723127443067,-1079.31918,0.00011,2]
[334459784,1723127443079,-365.795,0.00011,2]
[334459786,1723127443090,-3504.1443,0.00011,2]
[334459787,1723127443102,-653.31270692,0.00011,2]
[334459788,1723127443119,-20001.21171905,0.00011,2]
[334459789,1723127443174,-1072.66280005,0.00011,2]
[334459790,1723127443185,-3868.2,0.00011,2]
[334459791,1723127443306,-265.6000002,0.00011,2]
[334459793,1723127443351,-6895.38035321,0.00011,2]
[334459794,1723127443362,-4302.89567398,0.00011,2]
[334459795,1723127443374,-449.03088406,0.00011,2]
[334459796,1723127443386,-685.08301683,0.00011,2]
[334459797,1723127443397,-582.27256892,0.00011,2]
[334459799,1723127443408,-14518.19882609,0.00011,2]
[334459800,1723127443417,-370.45903161,0.0001331,2]
[334459801,1723127443427,-9206.011315,0.00014667,2]
[334459802,1723127443436,-4504.22553396,0.000149,2]
[334459803,1723127443445,-4129.0,0.00015,2]
[334459805,1723127443455,-410.64,0.00015522,2]
[334459806,1723127443464,-4504.2255339,0.00016011,2]
[334459809,1723127443473,-156.69,0.00016359,2]
[334459810,1723127443487,-470.48,0.0001643,2]
[334459813,1723127443496,-14564.5,0.00016495,2]
[334459814,1723127443506,-213.2091,0.0001667,2]
[334459817,1723127443515,-1000.0,0.00016679,2]
[334459819,1723127443524,-3909.04265943,0.0001676,3]
[334459869,1723127448093,-1256.30078933,0.00013283,2]
[334459870,1723127448103,-4583.75450767,0.00013283,2]
[334459871,1723127448142,-3968.71438693,0.00013283,2]
[334459872,1723127448155,-402.69536233,0.00013283,2]
[334459873,1723127448192,-578.46375607,0.00013283,2]
[334459874,1723127448345,-10173.21690629,0.00013283,2]
[334459875,1723127448356,-1468.10905517,0.0001676,3]
[334464544,1723127596902,500.0,0.00026061,120]
[334464549,1723127907200,163.34,0.0002569,120]
[334464551,1723128198584,500.0,0.00026061,120]
[334464552,1723128343049,453.2546697,0.00025,90]
[334464555,1723128461382,200.0,0.00025384,120]
[334464579,1723128633153,-462.51008299,0.00013619,2]
[334464580,1723128633163,-355.40991701,0.00013698,2]
[334464581,1723128633174,-494.33663641,0.00013698,2]
[334464582,1723128633185,-1001.07908928,0.00013698,2]
[334464583,1723128633197,-416.7272482,0.00013698,2]
[334464584,1723128633208,-1731.28504997,0.00013698,2]
[334464585,1723128633229,-623.8046275,0.00013698,2]
[334464586,1723128633241,-18479.66870992,0.00013698,2]
[334464604,1723128638755,-889.2172062,0.00013698,2]
[334464605,1723128638765,-196.56350179,0.00013758,2]
[334464606,1723128638775,-364.14,0.00013973,2]
[334464607,1723128638784,-398.43,0.00014972,2]
[334464608,1723128638794,-1404.75478801,0.00014988,2]
[334464609,1723128638808,-1004.0,0.00015,2]
[334464610,1723128638817,-409.09895621,0.00016285,2]
[334464611,1723128638826,-1000.0,0.00016403,2]
[334464612,1723128638836,-547.04761577,0.00016425,2]
[334464613,1723128638845,-1000.0,0.00016494,2]
[334464614,1723128638854,-743.3523,0.0001667,2]
[334464615,1723128638863,-916.04,0.0001667,2]
[334464616,1723128638873,-2410.46399,0.00016679,2]
[334464617,1723128638882,-250.0,0.00016737,2]
[334464618,1723128638891,-200.0,0.00016748,4]
[334464619,1723128638902,-10000.0,0.00016771,2]
[334464620,1723128638911,-200.0,0.00016784,2]
[334464621,1723128638920,-1000.0,0.00016791,2]
[334464622,1723128638930,-426.15,0.00016795,2]
[334464623,1723128638940,-555.69,0.00016795,2]
[334464624,1723128638948,-426.15,0.00016795,2]
[334464625,1723128638958,-216.22,0.00016795,2]
[334464626,1723128638967,-242.73,0.00016813,2]
[334464627,1723128638976,-368.54,0.00016826,2]
[334464628,1723128638986,-346.5,0.00016846,2]
[334464629,1723128638995,-1860.7009197,0.0001687,2]
[334464630,1723128639004,-300.0,0.00016879,2]
[334464631,1723128639015,-14655.57874878,0.0001688,2]
[334464632,1723128639024,-193.8411925,0.00016882,2]
[334464633,1723128639034,-194.76,0.00016886,2]
[334464634,1723128639043,-200.0,0.00016895,2]
[334464635,1723128639058,-285.13,0.00016897,2]
[334464636,1723128639075,-200.0,0.00016923,2]
[334464637,1723128639084,-155.0,0.00016948,2]
[334464638,1723128639094,-3162.62,0.00016982,2]
[334464639,1723128639103,-649.25432869,0.00016999,2]
[334464640,1723128639113,-347.57284792,0.00017004,2]
[334464641,1723128639123,-600.50572099,0.00017004,2]
[334464642,1723128639135,-624.06451664,0.00017004,2]
[334464643,1723128639145,-1975.9,0.00017017,2]
[334464644,1723128639154,-162.27,0.00017117,2]
[334464645,1723128639164,-163.34,0.00017126,2]
[334464646,1723128639174,-398.43,0.00017236,2]
[334464647,1723128639183,-522.83039782,0.00017259,2]
[334464648,1723128639192,-426.15,0.00017356,2]
[334464649,1723128639202,-151.06,0.00017356,2]
[334464650,1723128639212,-150.0,0.00017356,2]
[334464651,1723128639221,-309.19058688,0.00017399,2]
[334464652,1723128639230,-834.66,0.00017416,2]
[334464653,1723128639240,-2410.464,0.0001768,2]
[334464654,1723128639250,-164.68,0.00017711,2]
[334464655,1723128639259,-164.68,0.00017722,2]
[334464656,1723128639270,-164.68,0.00017733,2]
[334464657,1723128639279,-170.3193188,0.00017739,2]
[334464658,1723128639289,-164.68,0.00017745,2]
[334464659,1723128639299,-164.68,0.00017756,2]
[334464660,1723128639309,-164.68,0.00017767,2]
[334464661,1723128639318,-164.68,0.00017778,2]
[334464662,1723128639328,-164.68,0.00017789,2]
[334464663,1723128639337,-164.68,0.000178,2]
[334464664,1723128639346,-308.16874741,0.00018,2]
[334464665,1723128639356,-186.30171009,0.00018,2]
[334464666,1723128639365,-150.2,0.00018081,2]
[334464667,1723128639374,-196.46,0.00018669,2]